Workbook

Sheet Template 1
A1: Enter your original data: | Q1: Nightingale Rose Diagram Excel Template
A2: Series 1 | B2: Series 2 | C2: Series 3 | D2: Series 4 | E2: Series 5 | F2: Series 6 | G2: Series 7 | H2: Series 8 | I2: Series 9 | J2: Series 10 | K2: Series 11 | Q2: How To?
A3: 0.88 | B3: 0.41 | C3: 0.3 | D3: 0.4 | E3: 0.51 | F3: 0.32 | G3: 0.7 | H3: 0.21 | I3: 0.11 | J3: 0.13 | K3: 0.54 | Q3: 1. fill your data
A4: 0.12 | B4: 0.59 | C4: 0.7 | D4: 0.6 | E4: 0.49 | F4: 0.68 | G4: 0.3 | H4: 0.28 | I4: 0.29 | J4: 0.34 | K4: 0.46 | Q4: 2. fill color with the data
H5: 0.22 | I5: 0.23 | J5: 0.3 | Q5: 3. change the Backgroud and Center color
H6: 0.29 | I6: 0.18 | J6: 0.12 | Q6: 4. click Creat Diagram
I7: 0.12 | J7: 0.07 | Q7: 5. Add labels
I8: 0.07 | J8: 0.04 | Q8: 6. Use: Select the diagram range, Home - Copy - Copy as Picture
Q9: Note: | R9: don't change the formulas!
R10: don't delete or insert rows!
A13: Backgroud: | C13: Center:
A15: Diagram Data (Auto complete, don't change the formulas)
A16: =IF(A2="","",A2) -> Series 1 | B16: Series 2 | C16: Series 3 | D16: Series 4 | E16: Series 5 | F16: Series 6 | G16: Series 7 | H16: Series 8 | I16: Series 9 | J16: Series 10 | K16: Series 11 | L16: =IF(L2="","",L2) -> 
A17: =IF(A3="","",A3) -> 0.88 | B17: 0.41 | C17: 0.3 | D17: 0.4 | E17: 0.51 | F17: 0.32 | G17: 0.7 | H17: 0.21 | I17: 0.11 | J17: 0.13 | K17: 0.54 | L17: =IF(L3="","",L3) -> 
A18: =IF(A4="","",SUM(A$3:A4)) -> 1 | B18: =IF(B4="","",SUM(B$3:B4)) -> 1 | C18: =IF(C4="","",SUM(C$3:C4)) -> 1 | D18: =IF(D4="","",SUM(D$3:D4)) -> 1 | E18: =IF(E4="","",SUM(E$3:E4)) -> 1 | F18: =IF(F4="","",SUM(F$3:F4)) -> 1 | G18: =IF(G4="","",SUM(G$3:G4)) -> 1 | H18: =IF(H4="","",SUM(H$3:H4)) -> 0.49 | I18: =IF(I4="","",SUM(I$3:I4)) -> 0.4 | J18: =IF(J4="","",SUM(J$3:J4)) -> 0.47 | K18: =IF(K4="","",SUM(K$3:K4)) -> 1 | L18: =IF(L4="","",SUM(L$3:L4)) ->  | M18: =IF(M4="","",SUM(M$3:M4)) ->  | N18: =IF(N4="","",SUM(N$3:N4)) ->  | O18: =IF(O4="","",SUM(O$3:O4)) -> 
A19: =IF(A5="","",SUM(A$3:A5)) ->  | B19: =IF(B5="","",SUM(B$3:B5)) ->  | C19: =IF(C5="","",SUM(C$3:C5)) ->  | D19: =IF(D5="","",SUM(D$3:D5)) ->  | E19: =IF(E5="","",SUM(E$3:E5)) ->  | F19: =IF(F5="","",SUM(F$3:F5)) ->  | G19: =IF(G5="","",SUM(G$3:G5)) ->  | H19: =IF(H5="","",SUM(H$3:H5)) -> 0.71 | I19: =IF(I5="","",SUM(I$3:I5)) -> 0.63 | J19: =IF(J5="","",SUM(J$3:J5)) -> 0.77 | K19: =IF(K5="","",SUM(K$3:K5)) ->  | L19: =IF(L5="","",SUM(L$3:L5)) ->  | M19: =IF(M5="","",SUM(M$3:M5)) ->  | N19: =IF(N5="","",SUM(N$3:N5)) ->  | O19: =IF(O5="","",SUM(O$3:O5)) -> 
A20: =IF(A6="","",SUM(A$3:A6)) ->  | B20: =IF(B6="","",SUM(B$3:B6)) ->  | C20: =IF(C6="","",SUM(C$3:C6)) ->  | D20: =IF(D6="","",SUM(D$3:D6)) ->  | E20: =IF(E6="","",SUM(E$3:E6)) ->  | F20: =IF(F6="","",SUM(F$3:F6)) ->  | G20: =IF(G6="","",SUM(G$3:G6)) ->  | H20: =IF(H6="","",SUM(H$3:H6)) -> 1 | I20: =IF(I6="","",SUM(I$3:I6)) -> 0.81 | J20: =IF(J6="","",SUM(J$3:J6)) -> 0.89 | K20: =IF(K6="","",SUM(K$3:K6)) ->  | L20: =IF(L6="","",SUM(L$3:L6)) ->  | M20: =IF(M6="","",SUM(M$3:M6)) ->  | N20: =IF(N6="","",SUM(N$3:N6)) ->  | O20: =IF(O6="","",SUM(O$3:O6)) -> 
A21: =IF(A7="","",SUM(A$3:A7)) ->  | B21: =IF(B7="","",SUM(B$3:B7)) ->  | C21: =IF(C7="","",SUM(C$3:C7)) ->  | D21: =IF(D7="","",SUM(D$3:D7)) ->  | E21: =IF(E7="","",SUM(E$3:E7)) ->  | F21: =IF(F7="","",SUM(F$3:F7)) ->  | G21: =IF(G7="","",SUM(G$3:G7)) ->  | H21: =IF(H7="","",SUM(H$3:H7)) ->  | I21: =IF(I7="","",SUM(I$3:I7)) -> 0.93 | J21: =IF(J7="","",SUM(J$3:J7)) -> 0.96 | K21: =IF(K7="","",SUM(K$3:K7)) ->  | L21: =IF(L7="","",SUM(L$3:L7)) ->  | M21: =IF(M7="","",SUM(M$3:M7)) ->  | N21: =IF(N7="","",SUM(N$3:N7)) ->  | O21: =IF(O7="","",SUM(O$3:O7)) -> 
A22: =IF(A8="","",SUM(A$3:A8)) ->  | B22: =IF(B8="","",SUM(B$3:B8)) ->  | C22: =IF(C8="","",SUM(C$3:C8)) ->  | D22: =IF(D8="","",SUM(D$3:D8)) ->  | E22: =IF(E8="","",SUM(E$3:E8)) ->  | F22: =IF(F8="","",SUM(F$3:F8)) ->  | G22: =IF(G8="","",SUM(G$3:G8)) ->  | H22: =IF(H8="","",SUM(H$3:H8)) ->  | I22: =IF(I8="","",SUM(I$3:I8)) -> 1 | J22: =IF(J8="","",SUM(J$3:J8)) -> 1 | K22: =IF(K8="","",SUM(K$3:K8)) ->  | L22: =IF(L8="","",SUM(L$3:L8)) ->  | M22: =IF(M8="","",SUM(M$3:M8)) ->  | N22: =IF(N8="","",SUM(N$3:N8)) ->  | O22: =IF(O8="","",SUM(O$3:O8)) -> 
A23: =IF(A9="","",SUM(A$3:A9)) ->  | B23: =IF(B9="","",SUM(B$3:B9)) ->  | C23: =IF(C9="","",SUM(C$3:C9)) ->  | D23: =IF(D9="","",SUM(D$3:D9)) ->  | E23: =IF(E9="","",SUM(E$3:E9)) ->  | F23: =IF(F9="","",SUM(F$3:F9)) ->  | G23: =IF(G9="","",SUM(G$3:G9)) ->  | H23: =IF(H9="","",SUM(H$3:H9)) ->  | I23: =IF(I9="","",SUM(I$3:I9)) ->  | J23: =IF(J9="","",SUM(J$3:J9)) ->  | K23: =IF(K9="","",SUM(K$3:K9)) ->  | L23: =IF(L9="","",SUM(L$3:L9)) ->  | M23: =IF(M9="","",SUM(M$3:M9)) ->  | N23: =IF(N9="","",SUM(N$3:N9)) ->  | O23: =IF(O9="","",SUM(O$3:O9)) -> 
A24: =IF(A10="","",SUM(A$3:A10)) ->  | B24: =IF(B10="","",SUM(B$3:B10)) ->  | C24: =IF(C10="","",SUM(C$3:C10)) ->  | D24: =IF(D10="","",SUM(D$3:D10)) ->  | E24: =IF(E10="","",SUM(E$3:E10)) ->  | F24: =IF(F10="","",SUM(F$3:F10)) ->  | G24: =IF(G10="","",SUM(G$3:G10)) ->  | H24: =IF(H10="","",SUM(H$3:H10)) ->  | I24: =IF(I10="","",SUM(I$3:I10)) ->  | J24: =IF(J10="","",SUM(J$3:J10)) ->  | K24: =IF(K10="","",SUM(K$3:K10)) ->  | L24: =IF(L10="","",SUM(L$3:L10)) ->  | M24: =IF(M10="","",SUM(M$3:M10)) ->  | N24: =IF(N10="","",SUM(N$3:N10)) ->  | O24: =IF(O10="","",SUM(O$3:O10)) -> 

Sheet Template 2
A1: Indicator | B1: Market capitalization of listed companies (% of GDP) | C1: Olympic gold medals at London 2012 | D1: Box office revenues, $billion | E1: Internet users (per 100 people) | F1: Unemployment rate, % | G1: GDP per capita, $ | H1: Urban population, % of total population | I1: Average annual household income | J1: Life expectancy at birth, males | K1: Life expectancy at birth, females | L1: Billionaires, US$ | M1: Population | N1: Exports, $ trillion | O1: GDP growth
A2: China | B2: 46.3 | C2: 38 | D2: 2.7 | E2: 38.3 | F2: 6.4 | G2: 9100 | H2: 47 | I2: 10220 | J2: 72.96 | K2: 77.27 | L2: 317 | M2: 1349585838 | N2: 2.05 | O2: 7.8
A3: US | B3: 104.3 | C3: 46 | D3: 10.8 | E3: 77.9 | F3: 8.2 | G3: 49800 | H3: 82 | I3: 84300 | J3: 76.19 | K3: 81.17 | L3: 409 | M3: 316668567 | N3: 1.612 | O3: 2.2
A5: Diagram data (Auto complete, don't change the formulas)
A6: CHINA | B6: =IF(OR(B$2="",B$3=""),"",IF(B2=MAX(B$2:B$3),1,B2/MAX(B$2:B$3))) -> 0.4439117929 | C6: =IF(OR(C$2="",C$3=""),"",IF(C2=MAX(C$2:C$3),1,C2/MAX(C$2:C$3))) -> 0.8260869565 | D6: 0.25 | E6: 0.4916559692 | F6: 0.7804878049 | G6: 0.1827309237 | H6: 0.5731707317 | I6: 0.1212336892 | J6: 0.957605985 | K6: 0.9519526919 | L6: 0.7750611247 | M6: 1 | N6: 1 | O6: 1 | P6: =IF(OR(P$2="",P$3=""),"",IF(P2=MAX(P$2:P$3),1,P2/MAX(P$2:P$3))) ->  | W6: =IF(OR(W$2="",W$3=""),"",IF(W2=MAX(W$2:W$3),1,W2/MAX(W$2:W$3))) -> 
A7: US | B7: =IF(OR(B$2="",B$3=""),"",IF(B3=MAX(B$2:B$3),1,B3/MAX(B$2:B$3))) -> 1 | C7: =IF(OR(C$2="",C$3=""),"",IF(C3=MAX(C$2:C$3),1,C3/MAX(C$2:C$3))) -> 1 | D7: 1 | E7: 1 | F7: 1 | G7: 1 | H7: 1 | I7: 1 | J7: 1 | K7: 1 | L7: 1 | M7: 0.2346412937 | N7: 0.7863414634 | O7: 0.2820512821 | P7: =IF(OR(P$2="",P$3=""),"",IF(P3=MAX(P$2:P$3),1,P3/MAX(P$2:P$3))) ->  | W7: =IF(OR(W$2="",W$3=""),"",IF(W3=MAX(W$2:W$3),1,W3/MAX(W$2:W$3))) -> 
N12: How To?
N13: 1. fill your data in Row 1:3
N14: 2. fill color in A6 and A7
N15: 3. click Creat Diagram
N16: 4. Add labels
N17: 5. Use: Select the diagram range, Home - Copy - Copy as Picture
